Cogmind - Beta 11.1 @@@ ROGUE MODE // 2022.09.23 @ 08:36:11 Player: deadnoob Result: Destroyed by D-53 Grenadier with Mini Grenade Launcher Performance ------------- Evolutions (0) 0 Regions Visited (2) 400 Robots Destroyed (15) 75 Value Destroyed (330) 330 Prototype IDs (0) 0 Alien Tech Used (0) 0 Bonus (0) 0 TOTAL SCORE: 805 Bonus ------- None Cogmind --------- Core Integrity 0/250 Matter 281/300 Energy 250/250 System Corruption 0% Temperature Cool (0) Movement Walking (190) Ox1 Location -10/Mines Parts ------- > --- POWER (1) -------- Ion Engine > --- PROPULSION (2) --- Aluminum Leg Aluminum Leg > --- UTILITY (2) ------ Large Storage Unit Visual Processing Unit > --- WEAPON (2) ------- Assault Rifle Light Assault Rifle > --- INVENTORY (15) --- Light Ion Engine Light Ion Engine Aluminum Leg Aluminum Leg Wheel Wheel Wheel Hover Unit Small Storage Unit Tractor Beam EM Pulse Gun Beam Cannon Peak State ------------ > --- POWER ------------ Ion Engine > --- PROPULSION ------- Light Treads Light Treads > --- UTILITY ---------- Large Storage Unit Visual Processing Unit > --- WEAPON ----------- Medium Laser Assault Rifle > --- INVENTORY -------- Light Ion Engine Light Ion Engine Aluminum Leg Aluminum Leg Aluminum Leg Wheel Wheel Small Storage Unit EM Pulse Gun Light Assault Rifle [Rating: 9] Favorites ----------- Power Ion Engine Engine Ion Engine Propulsion Light Treads Treads Light Treads Leg Aluminum Leg Wheel Wheel Hover Unit Hover Unit Utility Large Storage Unit Storage Large Storage Unit Processor Visual Processing Unit Weapon Medium Laser Energy Gun Medium Laser Ballistic Gun Assault Rifle Build | -11 -10 -10 ------- Run | Scr Mat Min Slots Evolved . | . . . Power . | . . . Propulsion . | . . . Utility . | . . . Weapon . | . . . Parts Attached 15 | 1 8 6 Power . | . . . Engine . | . . . Core . | . . . Reactor . | . . . Propulsion 6 | . 2 4 Treads 2 | . 2 . Leg 2 | . . 2 Wheel 1 | . . 1 Hover 1 | . . 1 Flight . | . . . Utility 4 | . 4 . Device . | . . . Storage 1 | . 1 . Processor 3 | . 3 . Hackware . | . . . Protection . | . . . Artifact . | . . . Weapon 5 | 1 2 2 Energy Gun 1 | . 1 . Energy Cannon . | . . . Ballistic Gun 4 | 1 1 2 Ballistic Cannon . | . . . Launcher . | . . . Special Weapon . | . . . Impact Weapon . | . . . Slashing Weapon . | . . . Piercing Weapon . | . . . Special Melee Weapon . | . . . Unidentified Prototypes . | . . . Parts Lost 5 | . 2 3 Power . | . . . Propulsion 2 | . . 2 Utility . | . . . Weapon 3 | . 2 1 Highest Loss Streak 2 | . 1 2 To Critical Strikes . | . . . Average Slot Usage (%) 99 | . 98 99 Engine 14 | . 14 14 Treads 26 | . 27 24 Leg 1 | . . 1 Storage 14 | . 14 14 Processor 13 | . 13 14 Energy Gun 13 | . 13 13 Ballistic Gun 14 | . 14 14 Naked Turns . | . . . Heaviest Build 29 | 14 29 28 Greatest Support 40 | 20 40 40 Greatest Overweight (x) 9 | . 1 9 Average Overweight (x) . | . . . Largest Inventory Capacity 15 | 8 15 15 Average Capacity 14 | 8 14 15 Most Carried 14 | 6 12 14 Average Carried 11 | 6 10 12 Final Capacity 15 | 8 15 15 Final Carried 12 | 6 12 12 Class Distribution -------------------- 100% | Mutant Dominant Class ---------------- Mutant | -10/Materials Mutant | -10/Mines Resources | -11 -10 -10 ----------- Run | Scr Mat Min Matter Collected 461 | 208 172 81 Remotely . | . . . Salvage Created 611 | . 371 240 Parts 28 | . 15 13 Haulers Intercepted . | . . . Recyclers Shooed 3 | . 2 1 Parts Field Recycled . | . . . Retrieved Matter . | . . . Parts Self-Destructed . | . . . Prevented . | . . . Kills | -11 -10 -10 ------- Run | Scr Mat Min Combat Hostiles Destroyed 13 | . 8 5 Guns 13 | . 8 5 Classes Destroyed 7 | . 4 3 Worker 1 | . . 1 Tunneler 1 | . . 1 Recycler 2 | . 1 1 Watcher 1 | . 1 . Swarmer 3 | . 3 . Grunt 7 | . 5 2 Assembled 3 | . . 3 Best Kill Streak 4 | . 3 4 Combat Bots Only 3 | . 3 2 Max Kills in Single Turn 1 | . 1 1 Gunslinging . | . . . Exploded . | . . . Melee . | . . . Uniques/NPCs Destroyed . | . . . Combat | -11 -10 -10 -------- Run | Scr Mat Min Damage Taken 945 | . 525 420 Core 260 | . 129 131 Absorbed by Shields . | . . . Core Remaining (%) 100 | 100 . . Volleys Fired 82 | . 54 28 Largest 2 | . 2 2 Hottest 70 | . 70 60 Shots Fired 153 | . 97 56 Gun 153 | . 97 56 Cannon . | . . . Launcher . | . . . Special . | . . . Kinetic 83 | . 54 29 Thermal 70 | . 43 27 Explosive . | . . . Electromagnetic . | . . . Robot Hit Streak 11 | . 10 11 Robot Miss Streak 4 | . 4 3 Penetration Max . | . . . Secondary Targets 2 | . 1 1 Max Gunslinging Chain 1 | . 1 1 Shots Hit Robots 96 | . 58 38 Core Hits 38 | . 22 16 Critical Kills . | . . . Critical Parts Destroyed 1 | . . 1 Critical Strikes 7 | . 6 1 Burn 6 | . 6 . Destroy 1 | . . 1 Melee Attacks . | . . . Impact . | . . . Slashing . | . . . Piercing . | . . . Sneak Attacks . | . . . Combat Hostiles . | . . . Follow-up Attacks . | . . . Damage Inflicted 1126 | . 692 434 Guns 1108 | . 685 423 Cannons . | . . . Explosions . | . . . Melee . | . . . Ramming 18 | . 7 11 Kinetic 518 | . 346 172 Thermal 590 | . 339 251 Explosive . | . . . Electromagnetic . | . . . Impact . | . . . Slashing . | . . . Piercing . | . . . Highest Corruption . | . . . Average Corruption . | . . . Corruption Purged . | . . . Corruption Blocked . | . . . Overload Shots . | . . . Overflow Damage . | . . . Projectiles . | . . . Explosions . | . . . Melee . | . . . Knockbacks . | . . . Impact . | . . . Kinetic . | . . . Secondary . | . . . Self-Inflicted Damage . | . . . Shots . | . . . Rammed 4 | . 4 . Targets Rammed 7 | . 4 3 Kicked 2 | . . 2 Crushed 1 | . . 1 Highest Temperature 151 | . 151 76 Average Temperature 38 | . 40 34 Received Heat Transfer 371 | . 249 122 Siege Activations . | . . . Robots Corrupted . | . . . Combat Hostiles . | . . . Parts Fried . | . . . Impact Corruptions . | . . . Robots Melted . | . . . Combat Hostiles . | . . . Parts Melted 4 | . 4 . Heat Transferred 1993 | . 1443 550 Parts Sabotaged . | . . . Parts Stolen . | . . . Parts Stripped . | . . . Power Chain Reactions . | . . . Missiles Intercepted . | . . . Alert | -11 -10 -10 ------- Run | Scr Mat Min Peak Influence 155 | . 155 80 Initial 24 | . . 24 Average 30 | . 35 22 Maximum Alert Level . | . . . Low Security (%) 100 | 100 100 100 Level 1 . | . . . Level 2 . | . . . Level 3 . | . . . Level 4 . | . . . Level 5 . | . . . High Security . | . . . Max Security . | . . . Squads Dispatched 2 | . 2 . Investigation . | . . . Extermination . | . . . Reinforcement 2 | . 2 . Assault . | . . . Garrison . | . . . Intercept . | . . . Searches Triggered . | . . . Construction Impeded . | . . . Haulers Reinforced . | . . . Active Scanning Responses . | . . . Cargo Convoy Interrupts . | . . . Stealth | -11 -10 -10 --------- Run | Scr Mat Min Distress Signals 1 | . 1 . Communications Jammed . | . . . Distress Signals . | . . . Times Spotted 26 | . 17 9 Peak Tracking Total 4 | . 4 2 Tactical Retreats 3 | . 2 1 Traps | -11 -10 -10 ------- Run | Scr Mat Min Traps Triggered . | . . . Indirectly . | . . . Trap Hack Attempts . | . . . Triggered . | . . . Disarmed . | . . . Reprogrammed . | . . . Reused . | . . . Traps Extracted . | . . . Installed . | . . . Triggered . | . . . Machines | -11 -10 -10 ---------- Run | Scr Mat Min Machines Disabled . | . . . Max in Single Turn . | . . . Machines Sabotaged . | . . . Garrisons Compromised . | . . . Overloaded Fab Kills . | . . . Hacking | -11 -10 -10 --------- Run | Scr Mat Min Machines Accessed 1 | . 1 . Terminals 1 | . 1 . Fabricators . | . . . Repair Stations . | . . . Recycling Units . | . . . Scanalyzers . | . . . Garrison Access . | . . . Total Hacks 3 | . 3 . Successful 2 | . 2 . Failed 1 | . 1 . Catastrophic . | . . . Database Lockouts . | . . . Manual 3 | . 3 . Terminals 3 | . 3 . Fabricators . | . . . Repair Stations . | . . . Recycling Units . | . . . Scanalyzers . | . . . Garrison Access . | . . . Terminal Hacks 2 | . 2 . Robot Analysis 2 | . 2 . Fabricator Hacks . | . . . Repair Station Hacks . | . . . Recycling Unit Hacks . | . . . Scanalyzer . | . . . Garrison Access Hacks . | . . . Unauthorized Hacks . | . . . Terminals . | . . . Fabricators . | . . . Repair Stations . | . . . Recycling Units . | . . . Scanalyzers . | . . . Garrison Access . | . . . Data Cores Recovered . | . . . Used . | . . . Hacking Detections 1 | . 1 . Full Trace Events . | . . . Feedback Events . | . . . Feedback Blocked . | . . . Robot Schematics Acquired . | . . . Robots Built . | . . . Authchips . | . . . Time . | . . . Total Robot Build Rating . | . . . Part Schematics Acquired . | . . . Parts Built . | . . . Authchips . | . . . Time . | . . . Total Part Build Rating . | . . . Parts Repaired . | . . . Time . | . . . Parts Recycled . | . . . Recycled Matter . | . . . Retrieved Matter . | . . . Retrieved Components . | . . . Parts Scanalyzed . | . . . Part Schematics Acquired . | . . . Parts Damaged . | . . . Bothacking | -11 -10 -10 ------------ Run | Scr Mat Min Used RIF Installer . | . . . Robots Hacked . | . . . Non-combat . | . . . Combat . | . . . Robot Hacks Applied . | . . . Relay Couplers Released . | . . . Fabnet Peak Effective % . | . . . Robots Rewired . | . . . Allies Hacked . | . . . Hacks Repelled . | . . . Allies | -11 -10 -10 -------- Run | Scr Mat Min Total Allies . | . . . Largest Group . | . . . Highest-Rated Group . | . . . Highest-Rated Ally . | . . . Total Orders . | . . . Ally Attacks . | . . . Total Damage . | . . . Kills . | . . . Allies Corrupted . | . . . Allies Melted . | . . . Intel | -11 -10 -10 ------- Run | Scr Mat Min Robot Analysis Total 2 | . 2 . Derelict Logs Recovered 1 | . . 1 Drone Launches . | . . . Drone Recoveries . | . . . Exploration | -11 -10 -10 ------------- Run | Scr Mat Min Turns Passed 1629 | 4 1020 605 Spaces Moved 598 | 3 407 188 Core 1 | . . 1 Treads 568 | . 386 182 Legs 29 | 3 21 5 Wheels . | . . . Hover . | . . . Flight . | . . . Fastest Speed 120 | 120 120 160 Average Speed 187 | 120 199 164 Slowest Speed 500 | 120 240 500 Overloaded Moves . | . . . Propulsion Burnouts . | . . . Robots Hopped . | . . . Cave-ins Triggered . | . . . Exploration Rate (%) 36 | 2 57 51 Regions Visited 2 Branch Regions 1 Pre-discovered Areas 2 | . . 2 Known Exits Taken . | . . . Unknown Exits Taken 2 | 1 1 . Scrap Searched 1 | . . 1 Spaces Dug . | . . . Terrain Destroyed . | . . . Melee . | . . . Projectile . | . . . AOE . | . . . Terrain Rammed . | . . . Walls Destroyed . | . . . Machines Disabled . | . . . Actions | -11 -10 -10 --------- Run | Scr Mat Min Total 947 | 3 519 425 Wait 237 | . 39 198 Move 596 | 2 406 188 Hop . | . . . Pick Up 7 | . 6 1 Fast Attach 5 | . 4 1 Attach 4 | . 1 3 Detach 3 | . 2 1 Swap 6 | 1 3 2 Drop . | . . . Fire 82 | . 54 28 Melee . | . . . Ram . | . . . Kick 2 | . . 2 Crush 5 | . 4 1 Escape Stasis . | . . . Rewire . | . . . Trap . | . . . Miscellaneous . | . . . Route ------- -11/Scrapyard -10/Materials (discovered 2 exits: [*Mat] / [*Min]) -10/Mines History --------- Turn | Location | Event 3 | -11/Scrapyard | Discovered new exit (range 2) 5 | -11/Scrapyard | Entered Materials 307 | -10/Materials | Build established: Mutant 832 | -10/Materials | Discovered new exit (range 14) 937 | -10/Materials | Core integrity fell below 50% 979 | -10/Materials | Discovered new exit (range 6) 1025 | -10/Materials | Entered Mines 1026 | -10/Mines | Learned location of Storage (-9) 1036 | -10/Mines | Assembled infested the area 1629 | -10/Mines | Core integrity fell below 20% 1630 | -10/Mines | Destroyed by D-53 Grenadier with Mini Grenade Launcher Last Messages --------------- 01541_ Destroyed Aluminum Leg. 01546_ Lgt. Treads destroyed. 01557_ Destroyed Lgt. Nuclear Core. 01557_ G-47 Trooper destroyed. 01559_ Lgt. Treads destroyed. 01566_ G-34 Mercenary destroyed. 01566_ R-06 Scavenger collects Heat Sink. 01569_ K-01 Serf destroyed. 01572_ Acquired 36 matter. 01574_ R-06 Scavenger collects Med. Matter Pod. 01577_ R-06 Scavenger destroyed. 01577_ R-06 Scavenger collects Com. Wheel. 01578_ Acquired 3 matter. 01586_ Kicked T-07 Excavator. 01588_ Acquired 16 matter. 01594_ Kicked K-01 Serf. 01607_ Acquired Aluminum Leg. 01626_ Sml. Laser destroyed. 01628_ K-01 Serf destroyed. 01629_ The unstable cave ceiling collapses. Map ----- +----------------------------------------------------+ | ?????????????????????????????????????????????????? | | ?????????????????????????????????????????????????? | | ?????????????????????????????????????????????????? | | ?????????????????????????????????????????????????? | | ?????????????????????????????????????????????????? | | ?????????????????????????????????????????????????? | | ?????????????????????????????????????????????????? | | ?????????????????????????????????????????????????? | | ?????????????????????????????????????????????????? | | ?????????????????????????????????????????????????? | | ?????????????????????????????????????????????????? | | ?????????????????????????????????????????????????? | | ?????????????????????????????????????????????????? | | ??????????????????????###????????????????????????? | | ?????????????????????? ????????????????????????? | | ?????????????????????? #?????????????????####???? | | ?????????????????????# ?????????????????? #???? | | ?????????????????????# ??????????????????# #???? | | ????????????????????## ??????????????????# #???? | | ???????????????????## ??????????????????# #???? | | ???????????????#??## ??????????????????# ##??? | | ???????????????# ## r #####????????????## #??? | | ???????????????# d ## ##???????????# #??? | | ?????????????????# #???????????# ???? | | ?????????????????# [k #???????????# #???? | | ?????????????????# $% d @ #???????????## #???? | | ?????????????????## =** #= #??????????# #???? | | ??????????????????## !# =[% #??????????# #???? | | ???????????????????#### ###??????????## ##???? | | ??????????????????????### ##?????????????## #????? | | #???????????????????????# ######??????????# #????? | | ###?????????????????????# #??????????# #????? | | #?????????????????????###### #??????????# #????? | | #??????????????????????????# #??????????# #????? | | #??????????????????????????# ############ #????? | | #??????????????????????????# #????? | | #??????????????????????????############## #????? | | ###?????????????????????????????????????# #????? | | ##??####???????????????????###????????# #????? | | #### ##?????????????????## ##???????# #????? | | ## #????????????????## ######### #????? | | ##???????????????# #????? | | ##??????????????# #########????? | | ##??##???###???# #????????????? | | ##?# ### ##??# ##????????????? | | ##? # #??# ##?????????????? | | # ### #??## %##??????????????? | | # # # #???## #???????????????? | | " # # #???????# #???????????????? | | ## # #########!#####???????????? | +----------------------------------------------------+ Best States ------------- Heat Dissipation 25 Energy Generation 10 Energy Capacity 250 Matter Stores 300 Matter Capacity 300 Sight Range 18 Terrain Scan Density 10 Evasion (%) 55 Recoil Reduction 2 Item Schematics ----------------- None Robot Schematics ------------------ None Fabricated ------------ Nothing Alien Tech Used ----------------- None Achievements -------------- None Challenges ------------ None Game ------ Seed NovaDispersionNanoactuators Manual? 0 Play Time 00:10:03 Cumulative 91.9 hours Start 2022.09.23 @ 05:02:05 End 2022.09.23 @ 08:36:11 Sessions 3 Manual Loads 0 Difficulty Rogue Special Mode None Game No. 130 Rogue 130 Adventurer 0 Explorer 0 Win Type - Total 1 Types 1/0/0/0/0/0/0/0/0 Lore% 61 Gallery% 63 Achievement% 50 Wizard Run 0 Options --------- ASCII 0 Keyboard 0 Movement Numpad Keybinds 0 Fullscreen 2 Font 18/SmallcapsGlow Map View 76x50 Tactical HUD 1 Map Filters NONE Filters NONE Steam 1 RUN: 49cf5262-1bb7-436c-a94c-c2f5b22e0046